Cogmind - Beta 15 @@@ ROGUE MODE // 2025.05.26 @ 22:48:59 Player: GiggleBox Result: Destroyed by Y-64 Sentinel with KE Penetrator Performance ------------- Evolutions (6) 3000 Regions Visited (16) 3200 Robots Destroyed (132) 660 Value Destroyed (5172) 5172 Prototype IDs (15) 300 Alien Tech Used (0) 0 Bonus (4651) 4651 TOTAL SCORE: 16983 Bonus ------- High Alert Combat Kills 72 Follower Combat Kills 111 Entered DSFs 500 Met Imprinter 300 Was Imprinted 300 Destroyed Z-Imprinter 1000 Triggered Deep Caves Wall 500 Exposed GOLEM Chamber 500 Met Warlord at Base 500 MAIN.C Attacked Warlord 500 Warlord Defense Kills 748 Friendly Fire -380 Cogmind --------- Core Integrity 0/1150 Matter 44/300 Energy 99/100 System Corruption 2% Temperature Cool (9) Movement Core (50) Location -4/Factory Parts ------- > --- POWER (2) -------- (None) > --- PROPULSION (4) --- (None) > --- UTILITY (10) ----- Improved Salvage Targeting Computer > --- WEAPON (3) ------- (None) > --- INVENTORY (5) ---- Improved Transmission Jammer Drone Bay (2/2) Advanced Plasma Cannon Advanced Plasma Cannon Hardcell Cannon Peak State ------------ > --- POWER ------------ Antimatter Reactor Reinforced Antimatter Reactor > --- PROPULSION ------- Armored Medium Treads Armored Medium Treads Armored Medium Treads Armored Medium Treads > --- UTILITY ---------- Advanced Power Amplifier Cryofiber Web Advanced Cooling System Medium Storage Unit 0b10 Decoder Chip [Generic] Improved Targeting Computer Armor Integrity Analyzer Improved Transmission Jammer Improved Medium Armor Plating EM Disruption Field > --- WEAPON ----------- Vortex Rail Vortex Rail Railgun > --- INVENTORY -------- Armored Medium Treads Power Amplifier Advanced Heat Sink Advanced Shield Generator Drone Bay Hypervelocity Coil Gun Railgun Railgun Antimatter Cannon Chainsword [Rating: 110] Favorites ----------- Power Angular Momentum Engine Engine Angular Momentum Engine Power Core Neutrino Core Reactor Reinforced Antimatter Reactor Propulsion Armored Treads Treads Armored Treads Leg Myomer Leg Wheel Compact Wheel Hover Unit Backup Propulsion III Utility Improved Targeting Computer Device Cryofiber Web Storage Medium Storage Unit Processor Improved Targeting Computer Hackware Hacking Suite Protection Hardened Heavy Armor Plating Weapon Heavy Laser Energy Gun Heavy Laser Energy Cannon Heavy Disruptor Cannon Ballistic Gun Railgun Ballistic Cannon Heavy Flak Cannon Launcher Grenade Launcher Slashing Weapon Chainsword Piercing Weapon Spear Build | -11 -10 -10 -8 -7 -7 -7 -7 -6 -6 -6 -5 -5 -5 -5 -4 -4 ------- Run | Yrd Mat Sub Mat Fac Low Zio Dee Pro Fac DSF Fac Upp Upp War Pro Fac Slots Evolved 12 | . . . 4 2 . . . . 2 . 2 . . . . 2 Power 1 | . . . . . . . . . . . . . . . . 1 Propulsion 2 | . . . 1 1 . . . . . . . . . . . . Utility 8 | . . . 2 1 . . . . 2 . 2 . . . . 1 Weapon 1 | . . . 1 . . . . . . . . . . . . . Parts Attached 170 | 7 10 7 39 12 6 4 13 . 1 7 6 3 6 22 4 23 Power 19 | 1 2 2 3 1 . . 1 . . 1 . 1 2 2 . 3 Engine 8 | 1 2 2 2 1 . . . . . . . . . . . . Core 7 | . . . 1 . . . . . . . . 1 2 1 . 2 Reactor 4 | . . . . . . . 1 . . 1 . . . 1 . 1 Propulsion 43 | 2 3 1 14 4 1 1 2 . . 4 . . 1 8 . 2 Treads 37 | 2 3 1 14 4 1 1 2 . . . . . 1 8 . . Leg 2 | . . . . . . . . . . . . . . . . 2 Wheel 4 | . . . . . . . . . . 4 . . . . . . Hover . | . . . . . . . . . . . . . . . . . Flight . | . . . . . . . . . . . . . . . . . Utility 62 | 2 2 . 13 5 2 3 7 . . 2 3 2 2 4 3 12 Device 35 | 1 1 . 8 2 1 1 3 . . 1 2 1 . 3 2 9 Storage 8 | 1 1 . 2 . . . 2 . . . 1 1 . . . . Processor 8 | . . . 2 . . 2 1 . . . . . 1 . 1 1 Hackware 1 | . . . . . . . . . . . . . . . . 1 Protection 10 | . . . 1 3 1 . 1 . . 1 . . 1 1 . 1 Artifact . | . . . . . . . . . . . . . . . . . Weapon 46 | 2 3 4 9 2 3 . 3 . 1 . 3 . 1 8 1 6 Energy Gun 27 | 2 1 2 7 2 . . 3 . . . 3 . . 6 1 . Energy Cannon 4 | . . . . . 1 . . . . . . . . 1 . 2 Ballistic Gun 4 | . 1 . . . . . . . . . . . . . . 3 Ballistic Cannon 6 | . . 2 1 . 1 . . . 1 . . . 1 . . . Launcher 3 | . 1 . 1 . . . . . . . . . . 1 . . Special Weapon . | . . . . . . . . . . . . . . . . . Impact Weapon . | . . . . . . . . . . . . . . . . . Slashing Weapon 1 | . . . . . . . . . . . . . . . . 1 Piercing Weapon 1 | . . . . . 1 . . . . . . . . . . . Special Melee Weapon . | . . . . . . . . . . . . . . . . . Unidentified Prototypes 12 | . . . 2 . . . 6 . 1 . . . . 3 . . Parts Lost 74 | . 2 5 4 . 2 . 13 2 . 1 6 . 9 3 3 24 Power 12 | . 1 2 1 . . . . . . . 1 . 3 . . 4 Propulsion 22 | . . 1 1 . . . 7 . . . 3 . 2 2 1 5 Utility 26 | . . 1 1 . 1 . 1 1 . 1 2 . 2 1 2 13 Weapon 14 | . 1 1 1 . 1 . 5 1 . . . . 2 . . 2 Highest Loss Streak 12 | . 1 3 4 . 1 . 12 2 . 1 5 . 6 2 2 12 To Critical Strikes 1 | . . . . . . . . . . . . . . 1 . . Average Backups 10 | 2 8 9 12 13 14 15 14 4 4 4 . 3 6 8 9 7 Power . | . 1 . . . . 1 1 2 1 . . . . . 1 . Propulsion 2 | 1 3 5 4 3 3 3 2 . . . . . . . 1 . Utility 2 | . . . 1 3 4 6 6 1 1 1 . 1 2 2 2 2 Weapon 4 | . 2 2 5 6 5 5 4 1 1 2 . 2 3 5 5 4 Tool/Special . | . . . . . . . . . . . . . . . . . Unused Backups 25 | . 4 . 3 . . . 5 . . . . . . 1 2 10 Power 3 | . 1 . . . . . 1 . . . . . . . . 1 Propulsion 3 | . 3 . . . . . . . . . . . . . . . Utility 10 | . . . . . . . 4 . . . . . . 1 1 4 Weapon 9 | . . . 3 . . . . . . . . . . . 1 5 Tool/Special . | . . . . . . . . . . . . . . . . . Average Slot Usage (%) 88 | . 98 98 99 94 99 100 97 37 26 30 78 67 73 74 97 72 Engine 4 | . 13 13 2 4 7 7 2 . . . . . . 2 . . Core 1 | . . . 6 . . . . . . . . 3 4 . . 2 Treads 19 | . 27 28 27 30 30 30 29 . . . . . 3 4 22 12 Device 17 | . 14 13 16 20 22 16 15 15 13 7 14 17 17 17 25 21 Storage 7 | . 14 14 9 7 7 7 7 6 . . 3 9 5 5 5 4 Processor 8 | . . . 9 . . 5 7 15 13 13 11 11 16 16 15 10 Protection 3 | . . . . 6 7 7 6 . . 1 4 . 4 5 1 . Energy Gun 16 | . 21 15 26 22 19 22 21 . . . 7 11 10 7 17 3 Ballistic Cannon 1 | . . 11 . . 1 . . . . . 3 . 4 3 . . Peak Build Rating 110 | 7 11 14 34 47 49 51 63 29 24 30 55 54 61 85 91 110 Average Rating 44 | 5 9 12 30 41 46 49 54 24 19 16 48 48 57 56 87 78 On Entrance 35 | . 7 11 13 25 47 49 49 25 19 19 30 41 54 45 85 91 Naked Turns 103 | . . . . . . . . . . . . . . . . 103 Heaviest Build 89 | 11 22 27 39 55 58 56 56 2 1 20 49 42 65 80 80 89 Greatest Support 108 | 40 40 40 62 82 88 88 88 3 3 64 64 16 28 105 108 108 Greatest Overweight (x) 15 | 3 . . . . . . . . . . 2 2 15 15 . 2 Average Overweight (x) . | . . . . . . . . . . . . 1 2 2 . . Largest Inventory Capacity 15 | 8 10 10 15 15 15 15 15 5 5 5 10 10 10 10 10 10 Average Capacity 11 | 7 8 10 12 15 15 15 14 5 5 5 8 10 10 10 10 9 Most Carried 15 | 4 10 10 15 15 15 15 15 5 5 5 4 5 10 10 10 10 Average Carried 10 | 2 8 9 12 13 14 14 14 4 4 4 . 4 6 8 9 7 Final Capacity 15 | 8 10 10 15 15 15 15 5 5 5 5 10 10 10 10 10 5 Final Carried 15 | 4 10 9 12 15 15 15 5 4 5 2 4 5 8 9 10 5 Class Distribution -------------------- 39% | Gunner 34% | Mutant 9% | Scavenger-Gunner 6% | Scavenger-Tank 3% | Derelict-Gunner Dominant Class ---------------- Mutant | -10/Materials Mutant | -10/Subcaves Gunner | -8/Materials Gunner | -7/Factory Gunner | -7/Lower Caves Gunner | -7/Zion Scavenger-Gunner | -7/Deep Caves Mutant | -6/Proximity Caves Mutant | -6/Factory Mutant | -6/DSF Mutant | -5/Factory Mutant | -5/Upper Caves Gunner | -5/Upper Caves Mutant | -5/Warlord Derelict-Gunner | -4/Proximity Caves Scavenger-Gunner | -4/Factory Resources | -11 -10 -10 -8 -7 -7 -7 -7 -6 -6 -6 -5 -5 -5 -5 -4 -4 ----------- Run | Yrd Mat Sub Mat Fac Low Zio Dee Pro Fac DSF Fac Upp Upp War Pro Fac Matter Collected 3522 | 270 299 269 632 188 599 80 150 85 . . 50 182 97 240 60 321 Remotely . | . . . . . . . . . . . . . . . . . Salvage Created 5894 | 80 568 155 1931 277 550 31 285 74 . . 47 189 557 282 264 604 Parts 279 | 8 42 14 99 9 17 1 10 5 . . . 9 17 4 11 33 Haulers Intercepted 5 | . 2 . 3 . . . . . . . . . . . . . Recyclers Shooed 4 | 1 1 . 1 1 . . . . . . . . . . . . Parts Field Recycled . | . . . . . . . . . . . . . . . . . Retrieved Matter . | . . . . . . . . . . . . . . . . . Parts Self-Destructed 52 | . . 8 . . 13 4 . 5 . . . . 11 . 11 . Prevented 14 | . . . . . 7 . . 1 . . . . 6 . . . Kills | -11 -10 -10 -8 -7 -7 -7 -7 -6 -6 -6 -5 -5 -5 -5 -4 -4 ------- Run | Yrd Mat Sub Mat Fac Low Zio Dee Pro Fac DSF Fac Upp Upp War Pro Fac Combat Hostiles Destroyed 115 | . 13 7 37 2 10 1 10 3 . . 1 . 6 5 7 13 Melee 1 | . . . . . . . . . . . . . . . . 1 Guns 85 | . 8 1 34 1 8 1 7 . . . . . 4 4 7 10 Cannons 9 | . . 3 . . . . . 1 . . 1 . 2 . . 2 AOE 15 | . 5 3 2 . . . 3 2 . . . . . . . . Classes Destroyed 22 | 2 6 1 2 1 3 . 2 . . . . 1 1 2 . 1 Worker 3 | . 3 . . . . . . . . . . . . . . . Builder 4 | . 2 . . . . . . . . . . . . . . 2 Tunneler 3 | 1 . . 2 . . . . . . . . . . . . . Hauler 5 | . 2 . 3 . . . . . . . . . . . . . Recycler 5 | 1 . . 2 2 . . . . . . . . . . . . Operator 1 | . . . . . . . . . . . . . . . . 1 Watcher 3 | . 1 . 2 . . . . . . . . . . . . . Swarmer 24 | . 3 . 7 . 1 . . 3 . . . . . 1 5 4 Grunt 40 | . 10 . 19 . 4 . . . . . . . 2 2 . 3 Brawler 2 | . . . . . 1 . . . . . . . 1 . . . Duelist 2 | . . . . . 2 . . . . . . . . . . . Sentry 14 | . . . 9 1 1 . . . . . 1 . 1 . . 1 Specialist 2 | . . . 2 . . . . . . . . . . . . . Hunter 6 | . . . . 1 . 1 . . . . . . . . 2 2 Programmer 4 | . . . . . . . . . . . . . 2 . . 2 Behemoth 2 | . . . . . 1 . . . . . . . . . . 1 Enhanced Grunt 1 | . . . . . . . 1 . . . . . . . . . Striker 1 | . . . . . . . . . . . . . . 1 . . Executioner 1 | . . . . . . . . . . . . . . 1 . . Subdweller 7 | . . 7 . . . . . . . . . . . . . . Z-Light 2 | . . . . . . . 2 . . . . . . . . . Samaritan 8 | . . . . . . . . . . . . 4 4 . . . Assembled 8 | . . . . . . . 8 . . . . . . . . . Best Kill Streak 9 | 2 5 2 5 3 9 1 7 2 . . 1 . 3 3 2 3 Combat Bots Only 9 | . 3 2 5 1 9 1 7 2 . . 1 . 3 3 2 3 Max Kills in Single Turn 4 | 1 3 1 2 1 1 1 4 2 . . 1 1 2 1 1 2 Gunslinging 1 | . . . 1 . . . . . . . . . 1 . . . Exploded 3 | . 1 1 2 . . . 3 2 . . . . . . . . Melee 1 | . . . . . . . . . . . . . . . . 1 Uniques/NPCs Destroyed 1 | . . . . . . . 1 . . . . . . . . . Z-Imprinter (-7/Deep Caves) Combat | -11 -10 -10 -8 -7 -7 -7 -7 -6 -6 -6 -5 -5 -5 -5 -4 -4 -------- Run | Yrd Mat Sub Mat Fac Low Zio Dee Pro Fac DSF Fac Upp Upp War Pro Fac Hostile Shots Fired 1139 | . 61 29 149 20 54 4 119 49 . 39 30 2 78 102 45 358 Missed 355 | . 17 7 52 8 18 . 25 24 . 12 13 1 27 38 15 98 Hits 784 | . 44 22 97 12 36 4 94 25 . 27 17 1 51 64 30 260 Melee 29 | . . . . . 4 . 4 . . . . . 1 3 . 17 Projectile 755 | . 44 22 97 12 32 4 90 25 . 27 17 1 50 61 30 243 AOE 5 | . . 4 1 . . . . . . . . . . . . . Critical Strikes 31 | . . 1 4 . 5 . 2 1 . . . . 3 4 . 11 Part Disruptions 2 | . . . . . . . . . . 2 . . . . . . Damage Taken 15300 | . 587 849 1756 102 724 72 2354 355 . 521 316 22 831 1355 530 4926 Core 2834 | . 105 127 126 . 57 15 346 238 . 243 . . 148 266 . 1163 Absorbed by Shields 257 | . . . . . . . . . . . . . . . . 257 Ignored by Resistances 95 | . . . . . . . . . . . 11 . 84 . . . Regen/Repaired (Parts) 468 | . 182 . . 60 . 151 . . . . . . . 75 . . Core Remaining (%) 53 | 100 . 7 77 . . . . 6 . 71 . . . . 58 . Volleys Fired 402 | 6 49 34 98 6 65 1 28 3 . . 8 . 13 16 13 62 Largest 3 | 2 2 2 3 3 3 3 3 1 . . 3 . 3 3 3 3 Hottest 237 | 80 105 120 207 210 218 218 218 69 . . 219 . 219 237 237 237 Shots Fired 863 | 12 90 47 268 18 104 3 61 3 . . 19 . 28 46 39 125 Gun 736 | 12 82 20 255 18 55 3 56 . . . 14 . 22 46 39 114 Cannon 103 | . . 17 11 . 49 . 1 3 . . 5 . 6 . . 11 Launcher 24 | . 8 10 2 . . . 4 . . . . . . . . . Special . | . . . . . . . . . . . . . . . . . Kinetic 190 | . 28 17 13 . 42 . 5 . . . 5 . 6 . . 74 Thermal 593 | 12 54 13 255 18 48 3 54 . . . 14 . 22 46 39 15 Explosive 18 | . 8 10 . . . . . . . . . . . . . . Electromagnetic 31 | . . 7 . . 14 . 2 3 . . . . . . . 5 Entropic 31 | . . . . . . . . . . . . . . . . 31 Robot Hit Streak 33 | 5 13 23 33 7 18 3 6 5 . . 4 . 8 9 6 26 Robot Miss Streak 8 | 1 8 2 4 2 4 . 6 1 . . 3 . 4 2 2 3 Penetration Max 1 | . . . . . . . . . . . . . . . . 1 Secondary Targets 18 | . . . 10 . 1 . 2 . . . . . 1 2 . 2 Max Gunslinging Chain 2 | . . . 2 . 1 . 1 . . . . . 1 1 . 1 Capacitor 11 | . . . . . . . . . . . . . . . . 11 Shots Hit Robots 576 | 8 52 36 179 12 47 2 32 2 . . 12 9 25 32 22 106 Core Hits 270 | 3 36 15 74 7 25 1 25 3 . . 4 4 17 11 11 34 Critical Kills 1 | . . . . . . . . . . . . . . . . 1 Critical Parts Destroyed 1 | . . . . . . . . . . . . . . . . 1 Critical Strikes 26 | . 2 . 11 1 2 1 . . . . . 1 1 3 2 2 Burn 23 | . 2 . 11 1 2 1 . . . . . . 1 3 2 . Destroy 1 | . . . . . . . . . . . . . . . . 1 Impale 1 | . . . . . . . . . . . . 1 . . . . Detonate 1 | . . . . . . . . . . . . . . . . 1 Melee Attacks 36 | . . . . . 9 4 . . . . 2 9 6 . . 6 Impact . | . . . . . . . . . . . . . . . . . Slashing 6 | . . . . . . . . . . . . . . . . 6 Piercing 30 | . . . . . 9 4 . . . . 2 9 6 . . . Sneak Attacks 15 | . . . . . . . . . . . . 9 6 . . . Combat Hostiles . | . . . . . . . . . . . . . . . . . Follow-up Attacks . | . . . . . . . . . . . . . . . . . Damage Inflicted 15305 | 86 1274 1148 3562 290 1031 38 1456 133 . . 336 504 756 730 501 3460 Guns 10916 | 86 670 270 3426 290 864 38 741 . . . 132 . 313 725 501 2860 Cannons 1149 | . . 322 25 . 123 . 21 52 . . 179 . 112 . . 315 Explosions 2228 | . 602 556 57 . 44 . 694 81 . . . . . . . 194 Melee 948 | . . . . . . . . . . . 25 504 331 . . 88 Ramming 64 | . 2 . 54 . . . . . . . . . . 5 . 3 Kinetic 3057 | . 173 322 82 . . . 715 . . . 179 . 112 . . 1474 Thermal 8405 | 86 633 137 3426 290 821 38 707 81 . . 132 . 313 725 501 515 Explosive 990 | . 434 556 . . . . . . . . . . . . . . Electromagnetic 610 | . 32 133 . . 210 . 34 52 . . . . . . . 149 Impact . | . . . . . . . . . . . . . . . . . Slashing 88 | . . . . . . . . . . . . . . . . 88 Piercing 860 | . . . . . . . . . . . 25 504 331 . . . Entropic 1231 | . . . . . . . . . . . . . . . . 1231 Highest Corruption 4 | . . . . . . . 4 4 . . . . 1 1 . 2 Average Corruption 1 | . . . . . . . 4 4 . . . . 1 1 . 1 Corruption Purged . | . . . . . . . . . . . . . . . . . Corruption Blocked . | . . . . . . . . . . . . . . . . . Effects 17 | . . . . . . . 2 4 . . . . 1 2 . 8 Message Errors 3 | . . . . . . . . . . . . . . 1 . 2 Matter Fused 3 | . . . . . . . . 1 . . . . . . . 2 Heat Flow Errors 5 | . . . . . . . 1 1 . . . . . . . 3 Energy Discharges 1 | . . . . . . . . . . . . . . 1 . . Parts Rejected 1 | . . . . . . . . 1 . . . . . . . . Data Loss (minor) 2 | . . . . . . . . 1 . . . . . . . 1 Data Loss (major) 1 | . . . . . . . . . . . . . 1 . . . Weapon Failures 1 | . . . . . . . 1 . . . . . . . . . Overload Shots . | . . . . . . . . . . . . . . . . . Overflow Damage 223 | . 31 . . . . . 20 . . . 6 50 108 . . 8 Projectiles 14 | . . . . . . . . . . . 6 . . . . 8 Explosions 51 | . 31 . . . . . 20 . . . . . . . . . Melee 158 | . . . . . . . . . . . . 50 108 . . . Knockbacks 9 | . . 2 1 . . . . . . . 2 . 4 . . . Impact 1 | . . . 1 . . . . . . . . . . . . . Kinetic 8 | . . 2 . . . . . . . . 2 . 4 . . . Secondary . | . . . . . . . . . . . . . . . . . Self-Inflicted Damage 209 | . 61 60 . . . . 32 56 . . . . . . . . Shots 8 | . 1 5 . . . . 1 1 . . . . . . . . Rammed 11 | . 1 . 5 . . . . . . . . . . 2 . 3 Targets Rammed 12 | . 1 . 6 . . . . . . . . . . 2 . 3 Kicked . | . . . . . . . . . . . . . . . . . Crushed 1 | . . . 1 . . . . . . . . . . . . . Highest Temperature 379 | 108 147 278 244 30 196 . 261 . . . 379 . 277 146 303 372 Average Temperature 84 | 55 36 150 76 20 84 . 142 . . . 137 . 94 53 128 126 Received Heat Transfer 3344 | . 285 377 594 24 457 . 644 . . . 135 . 171 174 . 483 Effects 2 | . . . . . . . . . . . 1 . . . . 1 Interference 1 | . . . . . . . . . . . 1 . . . . . Damage (minor) 1 | . . . . . . . . . . . . . . . . 1 Siege Activations . | . . . . . . . . . . . . . . . . . Martial Activations . | . . . . . . . . . . . . . . . . . Shielding Activations . | . . . . . . . . . . . . . . . . . Robots Disrupted . | . . . . . . . . . . . . . . . . . Combat Hostiles . | . . . . . . . . . . . . . . . . . Robots Corrupted 1 | . . . . . 1 . . . . . . . . . . . Combat Hostiles 1 | . . . . . 1 . . . . . . . . . . . Parts Fried 3 | . . . . . 2 . . . . . . . . . . 1 Impact Corruptions . | . . . . . . . . . . . . . . . . . Robots Melted 4 | . . . 1 1 1 . . . . . . . . 1 . . Combat Hostiles 4 | . . . 1 1 1 . . . . . . . . 1 . . Parts Melted 27 | . 2 . 11 2 4 . . . . . . . 3 1 2 2 Heat Transferred 16196 | 200 1425 199 7376 581 1611 148 984 50 . . 222 . 592 1237 962 609 Parts Sabotaged . | . . . . . . . . . . . . . . . . . Parts Stolen . | . . . . . . . . . . . . . . . . . Parts Stripped . | . . . . . . . . . . . . . . . . . Power Chain Reactions 3 | . 1 . . . 1 . . 1 . . . . . . . . Alert | -11 -10 -10 -8 -7 -7 -7 -7 -6 -6 -6 -5 -5 -5 -5 -4 -4 ------- Run | Yrd Mat Sub Mat Fac Low Zio Dee Pro Fac DSF Fac Upp Upp War Pro Fac Maximum Alert Level 2 | . 1 . 2 . . . . . . . . . . . . . Low Security (%) 63 | 100 61 . 29 100 . . . . 100 100 100 . . . . 100 Level 1 26 | . 38 . 45 . . . . . . . . . . . . . Level 2 9 | . . . 24 . . . . . . . . . . . . . Level 3 . | . . . . . . . . . . . . . . . . . Level 4 . | . . . . . . . . . . . . . . . . . Level 5 . | . . . . . . . . . . . . . . . . . High Security . | . . . . . . . . . . . . . . . . . Max Security . | . . . . . . . . . . . . . . . . . Peak Influence 479 | 10 279 . 479 198 . . . . 2 45 30 . . . . 85 Initial 198 | . . . . 198 . . . . 2 3 23 . . . . . Average 140 | . 130 . 252 53 . . . . . 23 5 . . . . 25 Influence Increases 3158 | 10 597 . 1077 96 225 20 . 85 5 45 35 15 170 115 160 503 Destroy 0b10 Robot/C 1960 | . 260 . 740 40 200 20 . 60 . . 20 . 120 100 140 260 Destroy 0b10 Robot/NC 120 | 10 40 . 45 10 . . . . . . . . . . . 15 Destroy Leader 396 | . 56 . 190 20 10 . . 10 . . 10 . 20 . 20 60 Successful Hack 96 | . 28 . 20 26 . . . . 5 . 5 . . . . 12 Disable Machine 180 | . 120 . 30 . . . . . . . . . . . . 30 Destroy Structure 181 | . 78 . 37 . . . . . . . . . . . . 66 Partial Spotted 15 | . . . . . . . . . . . . . . . . 15 Lose Combat Pursuer 210 | . 15 . 15 . 15 . . 15 . 45 . 15 30 15 . 45 Influence Decreases 3131 | 10 400 197 640 533 225 20 . 80 5 5 80 15 170 58 217 476 Entered New Map 418 | . . 95 . 239 . . . . 3 2 22 . . . 57 . Time Decay 2300 | 10 380 80 600 294 195 20 . 60 2 . 58 15 104 28 130 324 Lost Part 393 | . 20 22 40 . 10 . . 20 . 3 . . 66 30 30 152 Lost Ally 20 | . . . . . 20 . . . . . . . . . . . Squads Dispatched 16 | . 3 . 6 2 . . . . . 1 2 . . . . 2 Investigation 3 | . 1 . 1 1 . . . . . . . . . . . . Extermination 3 | . . . . 1 . . . . . . . . . . . 2 Reinforcement 9 | . 2 . 4 . . . . . . 1 2 . . . . . Assault . | . . . . . . . . . . . . . . . . . Garrison 1 | . . . 1 . . . . . . . . . . . . . Intercept . | . . . . . . . . . . . . . . . . . Searches Triggered . | . . . . . . . . . . . . . . . . . Construction Impeded . | . . . . . . . . . . . . . . . . . Haulers Reinforced . | . . . . . . . . . . . . . . . . . Active Scanning Responses . | . . . . . . . . . . . . . . . . . Cargo Convoy Interrupts . | . . . . . . . . . . . . . . . . . Stealth | -11 -10 -10 -8 -7 -7 -7 -7 -6 -6 -6 -5 -5 -5 -5 -4 -4 --------- Run | Yrd Mat Sub Mat Fac Low Zio Dee Pro Fac DSF Fac Upp Upp War Pro Fac Distress Signals 2 | . 1 . 1 . . . . . . . . . . . . . Communications Jammed 44 | . . . . . . . . . . . . . . 44 . . Distress Signals 44 | . . . . . . . . . . . . . . 44 . . Times Spotted 225 | . 27 7 52 2 11 1 24 7 . 7 5 1 8 45 7 21 Peak Tracking Total 16 | . 4 2 6 1 9 1 16 3 . 4 2 1 4 12 2 5 Tactical Retreats 14 | . 1 . 1 . 1 . 1 1 . 3 . 1 2 1 . 2 Traps | -11 -10 -10 -8 -7 -7 -7 -7 -6 -6 -6 -5 -5 -5 -5 -4 -4 ------- Run | Yrd Mat Sub Mat Fac Low Zio Dee Pro Fac DSF Fac Upp Upp War Pro Fac Traps Triggered 8 | . 1 3 1 . . . . . 2 . . . . . . 1 Indirectly . | . . . . . . . . . . . . . . . . . Trap Hack Attempts . | . . . . . . . . . . . . . . . . . Triggered . | . . . . . . . . . . . . . . . . . Disarmed . | . . . . . . . . . . . . . . . . . Reprogrammed . | . . . . . . . . . . . . . . . . . Reused 1 | . . 1 . . . . . . . . . . . . . . Traps Extracted . | . . . . . . . . . . . . . . . . . Installed 1 | . . 1 . . . . . . . . . . . . . . Triggered . | . . . . . . . . . . . . . . . . . Most Traps Carried 1 | . . 1 . . . . . . . . . . . . . . Machines | -11 -10 -10 -8 -7 -7 -7 -7 -6 -6 -6 -5 -5 -5 -5 -4 -4 ---------- Run | Yrd Mat Sub Mat Fac Low Zio Dee Pro Fac DSF Fac Upp Upp War Pro Fac Machines Disabled 16 | . 8 . 2 . . . 4 . . . . . . . . 2 Max in Single Turn 6 | . 6 . 1 . . . . . . . . . . . . 1 Garrison Access 2 | . . . 1 1 . . . . . . . . . . . . Machines Repaired . | . . . . . . . . . . . . . . . . . Machines Dismantled . | . . . . . . . . . . . . . . . . . Machines Sabotaged . | . . . . . . . . . . . . . . . . . Overloaded Fab Kills . | . . . . . . . . . . . . . . . . . Hacking | -11 -10 -10 -8 -7 -7 -7 -7 -6 -6 -6 -5 -5 -5 -5 -4 -4 --------- Run | Yrd Mat Sub Mat Fac Low Zio Dee Pro Fac DSF Fac Upp Upp War Pro Fac Machines Accessed 35 | . 7 . 9 8 . 1 . . 2 . 3 . . 2 . 3 Terminals 21 | . 6 . 8 4 . . . . 1 . . . . . . 2 Fabricators 4 | . . . . 1 . . . . . . 3 . . . . . Repair Stations 2 | . 1 . . 1 . . . . . . . . . . . . Recycling Units 3 | . . . . 1 . . . . 1 . . . . . . 1 Scanalyzers . | . . . . . . . . . . . . . . . . . Garrison Access 2 | . . . 1 1 . . . . . . . . . . . . Total Hacks 80 | . 23 . 25 14 . 4 . . 2 . 3 . . 3 . 6 Successful 40 | . 14 . 10 5 . 4 . . 2 . 1 . . 3 . 1 Failed 40 | . 9 . 15 9 . . . . . . 2 . . . . 5 Catastrophic 6 | . . . 3 2 . . . . . . 1 . . . . . Database Lockouts . | . . . . . . . . . . . . . . . . . Manual 32 | . 5 . 16 3 . 5 . . . . . . . . . 3 Terminals 53 | . 18 . 24 6 . . . . 1 . . . . . . 4 Fabricators 5 | . . . . 2 . . . . . . 3 . . . . . Repair Stations 8 | . 5 . . 3 . . . . . . . . . . . . Recycling Units 4 | . . . . 1 . . . . 1 . . . . . . 2 Scanalyzers . | . . . . . . . . . . . . . . . . . Garrison Access 3 | . . . 1 2 . . . . . . . . . . . . Terminal Hacks 23 | . 8 . 5 1 . 4 . . 1 . . . . 3 . 1 Record 2 | . . . . . . . . . . . . . . 2 . . Part Schematic 5 | . 1 . . . . 4 . . . . . . . . . . Robot Analysis 1 | . . . 1 . . . . . . . . . . . . . Prototype ID Bank 3 | . 2 . 1 . . . . . . . . . . . . . Open Door 1 | . . . . . . . . . . . . . . 1 . . Open DSF 2 | . . . . 1 . . . . 1 . . . . . . . Terminal Index 1 | . . . . . . . . . . . . . . . . 1 Locate Traps 4 | . 1 . 3 . . . . . . . . . . . . . Recall Reinforcements 1 | . 1 . . . . . . . . . . . . . . . Hauler Manifests 1 | . 1 . . . . . . . . . . . . . . . Zone Layout 2 | . 2 . . . . . . . . . . . . . . . Fabricator Hacks 1 | . . . . . . . . . . . 1 . . . . . Build 1 | . . . . . . . . . . . 1 . . . . . Repair Station Hacks 6 | . 4 . . 2 . . . . . . . . . . . . Scan Component 3 | . 2 . . 1 . . . . . . . . . . . . Repair 3 | . 2 . . 1 . . . . . . . . . . . . Recycling Unit Hacks 2 | . . . . 1 . . . . 1 . . . . . . . Retrieve Components 2 | . . . . 1 . . . . 1 . . . . . . . Scanalyzer . | . . . . . . . . . . . . . . . . . Garrison Access Hacks 2 | . . . 1 1 . . . . . . . . . . . . Seal Access 2 | . . . 1 1 . . . . . . . . . . . . Unauthorized Hacks 6 | . 2 . 4 . . . . . . . . . . . . . Terminals 6 | . 2 . 4 . . . . . . . . . . . . . Botnet 4 | . 1 . 3 . . . . . . . . . . . . . Operators 2 | . 1 . 1 . . . . . . . . . . . . . Fabricators . | . . . . . . . . . . . . . . . . . Repair Stations . | . . . . . . . . . . . . . . . . . Recycling Units . | . . . . . . . . . . . . . . . . . Scanalyzers . | . . . . . . . . . . . . . . . . . Garrison Access . | . . . . . . . . . . . . . . . . . Data Cores Recovered 1 | . . . . . . . . . . . . . . . . 1 Used . | . . . . . . . . . . . . . . . . . Hacking Detections 27 | . 7 . 8 6 . . . . 1 . 2 . . . . 3 Full Trace Events 1 | . . . . 1 . . . . . . . . . . . . Feedback Events . | . . . . . . . . . . . . . . . . . Feedback Blocked . | . . . . . . . . . . . . . . . . . Robot Schematics Acquired 3 | . . . . . . 3 . . . . . . . . . . Robots Built . | . . . . . . . . . . . . . . . . . Authchips . | . . . . . . . . . . . . . . . . . Time . | . . . . . . . . . . . . . . . . . Total Robot Build Rating . | . . . . . . . . . . . . . . . . . Part Schematics Acquired 19 | . 1 . . . . 18 . . . . . . . . . . Parts Built . | . . . . . . . . . . . . . . . . . Authchips . | . . . . . . . . . . . . . . . . . Time 117 | . . . . . . . . . . . 117 . . . . . Total Part Build Rating . | . . . . . . . . . . . . . . . . . Parts Repaired 3 | . 2 . . 1 . . . . . . . . . . . . Time 77 | . 52 . . 25 . . . . . . . . . . . . Parts Recycled . | . . . . . . . . . . . . . . . . . Recycled Matter . | . . . . . . . . . . . . . . . . . Retrieved Matter . | . . . . . . . . . . . . . . . . . Retrieved Components 3 | . . . . 3 . . . . . . . . . . . . Parts Scanalyzed . | . . . . . . . . . . . . . . . . . Part Schematics Acquired . | . . . . . . . . . . . . . . . . . Parts Damaged . | . . . . . . . . . . . . . . . . . Bothacking | -11 -10 -10 -8 -7 -7 -7 -7 -6 -6 -6 -5 -5 -5 -5 -4 -4 ------------ Run | Yrd Mat Sub Mat Fac Low Zio Dee Pro Fac DSF Fac Upp Upp War Pro Fac Used RIF Installer . | . . . . . . . . . . . . . . . . . Robots Hacked . | . . . . . . . . . . . . . . . . . Non-combat . | . . . . . . . . . . . . . . . . . Combat . | . . . . . . . . . . . . . . . . . Robot Hacks Applied . | . . . . . . . . . . . . . . . . . Relay Couplers Released . | . . . . . . . . . . . . . . . . . Fabnet Peak Effective % . | . . . . . . . . . . . . . . . . . Robots Rewired 2 | . . . . . 2 . . . . . . . . . . . Allies Hacked . | . . . . . . . . . . . . . . . . . Hacks Repelled . | . . . . . . . . . . . . . . . . . Allies | -11 -10 -10 -8 -7 -7 -7 -7 -6 -6 -6 -5 -5 -5 -5 -4 -4 -------- Run | Yrd Mat Sub Mat Fac Low Zio Dee Pro Fac DSF Fac Upp Upp War Pro Fac Total Allies 8 | . . . . . 2 6 . . . . . . . . . . Largest Group 6 | . . . . . 2 6 2 . . . . . . . . . Highest-Rated Group 345 | . . . . . 36 345 192 . . . . . . . . . Highest-Rated Ally 96 | . . . . . 20 96 96 . . . . . . . . . Total Orders 1 | . . . . . 1 . . . . . . . . . . . STAY 1 | . . . . . 1 . . . . . . . . . . . Ally Attacks 78 | . . . . . 4 . 74 . . . . . . . . . Total Damage 3959 | . . . . . 89 . 3870 . . . . . . . . . Kills 11 | . . . . . . . 11 . . . . . . . . . Allies Corrupted . | . . . . . . . . . . . . . . . . . Allies Melted . | . . . . . . . . . . . . . . . . . Intel | -11 -10 -10 -8 -7 -7 -7 -7 -6 -6 -6 -5 -5 -5 -5 -4 -4 ------- Run | Yrd Mat Sub Mat Fac Low Zio Dee Pro Fac DSF Fac Upp Upp War Pro Fac Active Infowar (turns) 8348 | 38 509 945 201 . . 3 8 186 98 104 327 410 1716 2202 716 885 Terrain 241 | . . . . . . . . . . . . 17 224 . . . Seismic 1693 | 38 509 945 201 . . . . . . . . . . . . . Decoding 5977 | . . . . . . 3 8 186 98 104 327 410 1716 2202 716 207 Jamming 3447 | . . . . . . . . . . 18 155 321 1424 104 540 885 Robot Analysis Total 1 | . . . 1 . . . . . . . . . . . . . Derelict Logs Recovered 2 | . . . . . 1 . . . . . . 1 . . . . Drone Launches . | . . . . . . . . . . . . . . . . . Drone Recoveries . | . . . . . . . . . . . . . . . . . Decoded 0b10 Intel 21 | . . . . . . . . . 3 2 10 . . . . 6 Traps 3 | . . . . . . . . . 1 1 1 . . . . . Emergency Access 3 | . . . . . . . . . 1 . 2 . . . . . Items 10 | . . . . . . . . . 1 1 5 . . . . 3 Machines 2 | . . . . . . . . . . . 1 . . . . 1 Patrols 2 | . . . . . . . . . . . . . . . . 2 Guards 1 | . . . . . . . . . . . 1 . . . . . Exploration | -11 -10 -10 -8 -7 -7 -7 -7 -6 -6 -6 -5 -5 -5 -5 -4 -4 ------------- Run | Yrd Mat Sub Mat Fac Low Zio Dee Pro Fac DSF Fac Upp Upp War Pro Fac Turns Passed 17193 | 120 1590 1002 2628 866 1335 2019 866 186 98 104 327 410 1716 2202 716 1008 Spaces Moved 8950 | 57 817 535 1339 475 651 1178 458 313 127 170 255 297 562 774 393 549 Core 946 | 7 . . . . . . 12 313 127 149 . . 32 63 . 243 Treads 6700 | 50 817 535 1339 475 651 1178 446 . . . . . 390 172 393 254 Legs 52 | . . . . . . . . . . . . . . . . 52 Wheels 713 | . . . . . . . . . . 21 255 297 140 . . . Hover 539 | . . . . . . . . . . . . . . 539 . . Flight . | . . . . . . . . . . . . . . . . . Fastest Speed 50 | 50 160 160 158 158 163 167 50 50 50 50 100 115 130 162 167 50 Average Speed 167 | 154 160 160 159 161 163 167 163 50 50 56 102 127 293 267 168 135 Slowest Speed 800 | 200 160 160 163 163 167 167 167 50 50 100 130 130 800 800 170 330 Overloaded Moves . | . . . . . . . . . . . . . . . . . Propulsion Burnouts . | . . . . . . . . . . . . . . . . . Robots Hopped . | . . . . . . . . . . . . . . . . . Potential Cave-ins 8 | . 2 . 5 . . . . . . . . . . 1 . . Cave-ins Triggered . | . . . . . . . . . . . . . . . . . Exploration Rate (%) 51 | 5 95 32 93 12 39 90 63 54 3 92 7 63 67 82 60 14 Regions Visited 16 Branch Regions 9 Pre-discovered Areas 2 | . . . . . 1 1 . . . . . . . . . . Known Exits Taken 2 | . . . 1 . . . . . 1 . . . . . . . Unknown Exits Taken 13 | 1 1 1 . 1 1 1 1 1 . . 1 1 1 1 1 . Scrap Searched 16 | . . 3 . . 3 2 . . . . . 1 4 . 3 . Spaces Dug 12 | . . . 1 . 6 1 . . . . . . . . . 4 Terrain Destroyed 239 | . 85 36 32 . 15 1 15 7 . . . . . 2 2 44 Melee 5 | . . . . . 4 1 . . . . . . . . . . Projectile 68 | . . 4 10 . 11 . 3 . . . . . . 2 2 36 AOE 166 | . 85 32 22 . . . 12 7 . . . . . . . 8 Terrain Rammed . | . . . . . . . . . . . . . . . . . Walls Destroyed . | . . . . . . . . . . . . . . . . . Machines Disabled . | . . . . . . . . . . . . . . . . . Actions | -11 -10 -10 -8 -7 -7 -7 -7 -6 -6 -6 -5 -5 -5 -5 -4 -4 --------- Run | Yrd Mat Sub Mat Fac Low Zio Dee Pro Fac DSF Fac Upp Upp War Pro Fac Total 10319 | 74 1012 626 1638 559 809 1221 519 338 161 176 296 311 601 871 419 688 Wait 446 | 1 106 26 93 58 44 26 . 19 . . 21 . 5 36 1 10 Move 8935 | 56 816 534 1338 474 650 1177 457 312 126 169 254 296 561 774 392 549 Hop . | . . . . . . . . . . . . . . . . . Pick Up 89 | 4 13 5 19 4 3 1 3 . 2 . 3 2 8 3 5 14 Fast Attach 52 | 7 3 1 2 2 2 1 1 1 . 4 4 2 1 9 2 10 Attach 51 | . 1 5 4 4 2 1 6 2 1 3 2 1 5 2 2 10 Detach 10 | . . . . . 1 1 1 1 1 . . . . 2 . 3 Swap 142 | . 12 16 41 7 12 6 16 . . . 2 1 2 13 2 12 Drop 97 | . 11 4 37 4 4 3 7 . 1 . . . . 15 2 9 Fire 402 | 6 49 34 98 6 65 1 28 3 . . 8 . 13 16 13 62 Melee 36 | . . . . . 9 4 . . . . 2 9 6 . . 6 Ram . | . . . . . . . . . . . . . . . . . Kick . | . . . . . . . . . . . . . . . . . Crush 11 | . 1 . 6 . . . . . . . . . . 1 . 3 Escape Stasis 30 | . . . . . . . . . 30 . . . . . . . Rewire 17 | . . . . . 17 . . . . . . . . . . . Trap 1 | . . 1 . . . . . . . . . . . . . . Miscellaneous . | . . . . . . . . . . . . . . . . . Route ------- -11/Scrapyard -10/Materials (discovered 5 exits: [*Mat x3] / [*Min] / [*Sub]) -10/Subcaves -8/Materials (discovered 3 exits: *Fac x3) -7/Factory -7/Lower Caves -7/Zion (discovered 2 exits: [*Dee] / [*Pro]) -7/Deep Caves -6/Proximity Caves -6/Factory -6/DSF -5/Factory -5/Upper Caves -5/Upper Caves -5/Warlord -4/Proximity Caves -4/Factory (discovered 1 exit: Res) History --------- Turn | Location | Event 17 | -11/Scrapyard | Discovered new exit (range 16) 121 | -11/Scrapyard | Entered Materials 302 | -10/Materials | Build established: Mutant 624 | -10/Materials | Discovered new exit (range 15) 684 | -10/Materials | Discovered new exit (range 8) 732 | -10/Materials | Repaired Lgt. Treads 760 | -10/Materials | Repaired Lgt. Treads 1025 | -10/Materials | Discovered new exit (range 11) 1284 | -10/Materials | Build established: Scavenger-Mutant 1314 | -10/Materials | Discovered new exit (range 15) 1456 | -10/Materials | Discovered new exit (range 5) 1590 | -10/Materials | Build established: Mutant 1711 | -10/Materials | Entered Subcaves 1712 | -10/Subcaves | Ambushed by Subdwellers from Twisted Machinery 1761 | -10/Subcaves | Disturbed a concealed Subdweller 1800 | -10/Subcaves | Shifting Twisted Machinery released Hvy. Riot Gun 1803 | -10/Subcaves | Shifting Twisted Machinery released Slug Cannon 1862 | -10/Subcaves | Core integrity fell below 50% 1903 | -10/Subcaves | Lost 3 parts (1p1u1w) 2370 | -10/Subcaves | Shifting Twisted Machinery released Sub. Monowheel 2527 | -10/Subcaves | Core integrity fell below 20% 2693 | -10/Subcaves | Discovered new exit (range 14) 2713 | -10/Subcaves | Entered Materials 2713 | -8/Materials | Evolved 4 slots: Propulsion x1, Utility x2, Weapon x1 3291 | -8/Materials | Build established: Scavenger-Gunner 3759 | -8/Materials | Build established: Gunner 3829 | -8/Materials | Garrison activated, responded to threat 3889 | -8/Materials | Discovered new exit (range 9) 4866 | -8/Materials | Discovered new exit (range 13) 4923 | -8/Materials | Identified exit to Factory 5316 | -8/Materials | Discovered exit to Factory (range 5) 5341 | -8/Materials | Entered Factory 5341 | -7/Factory | Evolved 2 slots: Propulsion x1, Utility x1 5370 | -7/Factory | Lost 4 parts (1p1n1u1w) 5460 | -7/Factory | Discovered new exit (range 6) 5957 | -7/Factory | Repaired Angular Momentum Engine 6207 | -7/Factory | Entered Lower Caves 6252 | -7/Lower Caves | Attracted the attention of an 0b10 outpost 6348 | -7/Lower Caves | Destroyed 9 combat bots 6489 | -7/Lower Caves | Spotted B-75 Beast 7317 | -7/Lower Caves | Destroyed B-75 Beast 7457 | -7/Lower Caves | Learned location of Zion (-7) 7513 | -7/Lower Caves | A Derelict revealed a hidden shortcut to a safe place 7542 | -7/Lower Caves | Entered Zion 7680 | -7/Zion | Build established: Scavenger-Tank 8023 | -7/Zion | Given the Hacking Drone Bay 8209 | -7/Zion | Given A8's code to call for help 8223 | -7/Zion | Build established: Gunner 8558 | -7/Zion | Acquired unknown access codes intercepted by a Zionite 8790 | -7/Zion | Met Imprinter 8823 | -7/Zion | Imprinted 8825 | -7/Zion | Declared Zion's savior 9097 | -7/Zion | Discovered new exit (range 14) 9490 | -7/Zion | Enhanced Grunt warped into view, answering call for help 9491 | -7/Zion | Enhanced Grunt warped into view, answering call for help 9497 | -7/Zion | Opened final containment barrier to the Deep Caves 9535 | -7/Zion | Discovered new exit (range 3) 9535 | -7/Zion | Saw the warning signs outside the Deep Caves entrance 9561 | -7/Zion | Entered Deep Caves 9561 | -7/Deep Caves | Accompanied by 6 allies 9738 | -7/Deep Caves | Z-Facility disabled 9777 | -7/Deep Caves | Attacked by Z-Imprinter 9791 | -7/Deep Caves | Allies destroyed Z-Imprinter 9833 | -7/Deep Caves | Found Prototype Protection 9833 | -7/Deep Caves | Identified Zio. Weapon Casing 10118 | -7/Deep Caves | Build established: Scavenger-Gunner 10241 | -7/Deep Caves | Discovered new exit (range 7) 10321 | -7/Deep Caves | Spotted AG-84613 10332 | -7/Deep Caves | Exposed GOLEM chamber 10333 | -7/Deep Caves | Triggered Deep Caves wall 10393 | -7/Deep Caves | Destroyed 7 combat bots 10420 | -7/Deep Caves | Core integrity fell below 50% 10427 | -7/Deep Caves | Entered Proximity Caves 10448 | -6/Proximity Caves | Lost 12 parts (7n1u4w) 10484 | -6/Proximity Caves | Spotted B-75 Beast 10596 | -6/Proximity Caves | Core integrity fell below 20% 10607 | -6/Proximity Caves | Discovered new exit (range 12) 10613 | -6/Proximity Caves | Entered Factory 10613 | -6/Factory | Evolved 2 slots: Utility x2 10618 | -6/Factory | Build established: Mutant 10711 | -6/Factory | Identified exit to DSF 10711 | -6/Factory | Entered DSF 10734 | -6/DSF | Discovered new exit (range 15) 10737 | -6/DSF | Additional patrols routed to DSF 10815 | -6/DSF | Entered Factory 10815 | -5/Factory | Evolved 2 slots: Utility x2 10971 | -5/Factory | Discovered new exit (range 5) 11142 | -5/Factory | Entered Upper Caves 11158 | -5/Upper Caves | Lost 5 parts (1p3n1u) 11353 | -5/Upper Caves | Learned location of 1 exit from Factory 11544 | -5/Upper Caves | Discovered new exit (range 6) 11552 | -5/Upper Caves | Entered another Upper Caves area 11740 | -5/Upper Caves | Spotted B-75 Beast 11814 | -5/Upper Caves | Attracted the attention of an 0b10 checkpoint 11852 | -5/Upper Caves | Lost 6 parts (2p1n2u1w) 12124 | -5/Upper Caves | Build established: Gunner 13049 | -5/Upper Caves | Lost 3 parts (1p1n1w) 13140 | -5/Upper Caves | Discovered new exit (range 13) 13268 | -5/Upper Caves | Entered Warlord 13302 | -5/Warlord | Build established: Mutant 13556 | -5/Warlord | System corruption cleaned by Quarantine Array 14568 | -5/Warlord | Warlord's base attacked by MAIN.C 14660 | -5/Warlord | Found Prototype Launcher 14660 | -5/Warlord | Identified Vortex Catalyst Activator 14666 | -5/Warlord | Found Prototype Energy Gun 14669 | -5/Warlord | Found Prototype Energy Gun 14669 | -5/Warlord | Identified Vortex Rail (x2) 14674 | -5/Warlord | Found Prototype Energy Cannon 14674 | -5/Warlord | Identified Vortex Cannon 14681 | -5/Warlord | Found Vortex Rail 14685 | -5/Warlord | Found Vortex Rail 14888 | -5/Warlord | Rebuked by Warlord 14918 | -5/Warlord | Warlord forces counterattacked 15173 | -5/Warlord | Lost 9 allies 15175 | -5/Warlord | Spotted Executioner 15209 | -5/Warlord | Destroyed Executioner 15226 | -5/Warlord | Lost 4 allies 15229 | -5/Warlord | Spotted Striker 15243 | -5/Warlord | Warlord base infiltrated, sounded retreat 15271 | -5/Warlord | Destroyed Striker 15390 | -5/Warlord | Spotted Executioner 15408 | -5/Warlord | Spotted Striker 15413 | -5/Warlord | Discovered new exit (range 15) 15468 | -5/Warlord | Spotted Striker 15468 | -5/Warlord | Spotted Striker 15470 | -5/Warlord | Entered Proximity Caves 15508 | -4/Proximity Caves | Build established: Scavenger-Tank 16166 | -4/Proximity Caves | Discovered new exit (range 9) 16175 | -4/Proximity Caves | Build established: Derelict-Gunner 16186 | -4/Proximity Caves | Entered Factory 16186 | -4/Factory | Evolved 2 slots: Power x1, Utility x1 16187 | -4/Factory | Identified exit to Research 16271 | -4/Factory | Spotted B-86 Titan 16376 | -4/Factory | Destroyed B-86 Titan 16455 | -4/Factory | Lost 5 parts (1p4u) 16532 | -4/Factory | Build established: Scavenger-Gunner 16581 | -4/Factory | Found Quantum Capacitor 16739 | -4/Factory | Lost 12 parts (1p4n5u2w) 17071 | -4/Factory | Released all parts (9) 17094 | -4/Factory | Lost 7 parts (2p1n4u) 17097 | -4/Factory | Core integrity fell below 50% 17168 | -4/Factory | Core integrity fell below 20% 17194 | -4/Factory | Destroyed by Y-64 Sentinel with KE Penetrator Last Messages --------------- 17095_ U-05 Engineer builds a Door. 17125_ ALERT: Potential suspicious activity detected, Programmers report to Factory Zone 5X. 17155_ Slug penetrates Wall. 17157_ Penetrated by Slug. 17164_ System corrupted: Heat flow error (+237). 17164_ Critical hit (Burn: +37). 17167_ Slug penetrates Wall. 17172_ K-01 Serf pushes T-07 Excavator. 17174_ Acquired Imp. Salvage Targeting Computer. 17176_ K-01 Serf pushes T-07 Excavator. 17178_ Penetrated by Slug. 17178_ K-01 Serf pushes T-07 Excavator. 17181_ Penetrated by Slug. 17182_ K-01 Serf pushes T-07 Excavator. 17189_ Slug penetrates Neutrino Reactor. 17190_ Penetrated by Slug. 17191_ Critical hit (Burn: +37). 17194_ System corrupted: Matter fused (-6). 17194_ Penetrated by Slug. Map ----- +----------------------------------------------------+ | ?????# # #???????????????????????????? | | ?????# # #???????????????????????????? | | ?????# """" + #???????????????????????????? | | ?????# ""F" # #???????????????????????????? | | ?????#! # #???????????????????????????? | | ?????# #? ????????????????????????????? | | ?????# /[[ #??#+#?????????????????????????????? | | ###### /[ #??# #?????????????????????????????? | | /[ #??# #?????????????????????????????? | | ### #??# #?????????????????????????